Cogmind - Beta 9.6 @@@ ROGUE MODE // 2020.08.18 @ 08:31:43 Player: Exp. Geonium Core Result: Destroyed by G-47 Trooper with Particle Gun Performance ------------- Evolutions (0) 0 Regions Visited (1) 200 Robots Destroyed (4) 20 Value Destroyed (162) 162 Prototype IDs (0) 0 Alien Tech Used (0) 0 Bonus (0) 0 TOTAL SCORE: 382 Bonus ------- None Cogmind --------- Core Integrity 0/250 Matter 283/300 Energy 100/100 System Corruption 2% Temperature Cool (207) Movement Core (1100) Ox21 Location -10/Materials Parts ------- > --- POWER (1) -------- (None) > --- PROPULSION (2) --- (None) > --- UTILITY (2) ------ High-capacity Storage Unit High-capacity Storage Unit > --- WEAPON (2) ------- (None) > --- INVENTORY (20) --- High-capacity Storage Unit High-capacity Storage Unit High-capacity Storage Unit High-capacity Storage Unit Datajack Datajack Datajack Peak State ------------ > --- POWER ------------ Ion Engine > --- PROPULSION ------- Wheel Compact Wheel > --- UTILITY ---------- High-capacity Storage Unit High-capacity Storage Unit > --- WEAPON ----------- EM Pulse Gun EM Pulse Gun > --- INVENTORY -------- Light Ion Engine Datajack Datajack Datajack [Rating: 7] Favorites ----------- Power Ion Engine Engine Ion Engine Propulsion Compact Wheel Wheel Compact Wheel Utility High-capacity Storage Unit Storage High-capacity Storage Unit Weapon EM Pulse Gun Energy Gun EM Pulse Gun Build | -11 -10 ------- Run | Scr Mat Slots Evolved . | . . Power . | . . Propulsion . | . . Utility . | . . Weapon . | . . Parts Attached 11 | 6 5 Power 2 | 1 1 Engine 2 | 1 1 Core . | . . Reactor . | . . Propulsion 2 | 2 . Treads . | . . Leg . | . . Wheel 2 | 2 . Hover . | . . Flight . | . . Utility 3 | 1 2 Device . | . . Storage 3 | 1 2 Processor . | . . Hackware . | . . Protection . | . . Artifact . | . . Weapon 4 | 2 2 Energy Gun 4 | 2 2 Energy Cannon . | . . Ballistic Gun . | . . Ballistic Cannon . | . . Launcher . | . . Special Weapon . | . . Impact Weapon . | . . Slashing Weapon . | . . Piercing Weapon . | . . Special Melee Weapon . | . . Unidentified Prototypes . | . . Parts Lost 8 | . 8 Power 2 | . 2 Propulsion 2 | . 2 Utility . | . . Weapon 4 | . 4 Highest Loss Streak 4 | . 4 Average Slot Usage (%) 83 | . 83 Engine 13 | . 13 Wheel 22 | . 22 Storage 26 | . 26 Energy Gun 20 | . 20 Naked Turns . | . . Heaviest Build 73 | 13 73 Greatest Support 26 | 26 26 Greatest Overweight (x) 4 | . 4 Average Overweight (x) 1 | . 1 Largest Inventory Capacity 20 | 6 20 Average Capacity 15 | 5 18 Most Carried 8 | 1 8 Average Carried 5 | . 6 Final Capacity 20 | 6 20 Final Carried 7 | 1 7 Class Distribution -------------------- 69% | Hauler-Mutant 30% | Mutant Dominant Class ---------------- Hauler-Mutant | -10/Materials Resources | -11 -10 ----------- Run | Scr Mat Matter Collected 235 | 153 82 Remotely . | . . Salvage Created 178 | . 178 Parts 11 | . 11 Haulers Intercepted . | . . Recyclers Shooed . | . . Parts Field Recycled . | . . Retrieved Matter . | . . Parts Self-Destructed . | . . Prevented . | . . Kills | -11 -10 ------- Run | Scr Mat Combat Hostiles Destroyed 4 | . 4 Melee 1 | . 1 Guns 3 | . 3 Classes Destroyed 1 | . 1 Grunt 4 | . 4 Best Kill Streak 4 | . 4 Combat Bots Only 4 | . 4 Max Kills in Single Turn 1 | . 1 Gunslinging . | . . Exploded . | . . Melee 1 | . 1 Uniques/NPCs Destroyed . | . . Combat | -11 -10 -------- Run | Scr Mat Damage Taken 707 | . 707 Core 258 | . 258 Absorbed by Shields . | . . Core Remaining (%) 100 | 100 . Volleys Fired 22 | . 22 Largest 2 | . 2 Hottest 80 | . 80 Shots Fired 23 | . 23 Gun 23 | . 23 Cannon . | . . Launcher . | . . Special . | . . Kinetic . | . . Thermal 16 | . 16 Explosive . | . . Electromagnetic 7 | . 7 Robot Hit Streak 5 | . 5 Robot Miss Streak 4 | . 4 Penetration Max . | . . Secondary Targets . | . . Shots Hit Robots 14 | . 14 Core Hits 11 | . 11 Critical Hits . | . . Critical Kills . | . . Critical Parts Destroyed . | . . Melee Attacks . | . . Impact . | . . Slashing . | . . Piercing . | . . Sneak Attacks . | . . Combat Hostiles . | . . Follow-up Attacks . | . . Damage Inflicted 247 | . 247 Guns 218 | . 218 Cannons . | . . Explosions . | . . Melee . | . . Ramming 29 | . 29 Kinetic . | . . Thermal 149 | . 149 Explosive . | . . Electromagnetic 69 | . 69 Impact . | . . Slashing . | . . Piercing . | . . Highest Corruption 2 | . 2 Average Corruption 2 | . 2 Corruption Purged . | . . Overload Shots . | . . Overflow Damage . | . . Projectiles . | . . Explosions . | . . Melee . | . . Knockbacks . | . . Impact . | . . Kinetic . | . . Secondary . | . . Self-Inflicted Damage 13 | . 13 Shots . | . . Rammed 5 | . 5 Targets Rammed 5 | . 5 Kicked . | . . Crushed . | . . Highest Temperature 419 | . 419 Average Temperature 187 | . 187 Received Heat Transfer 384 | . 384 Effects 1 | . 1 Shutdowns 1 | . 1 Siege Activations . | . . Robots Corrupted . | . . Combat Hostiles . | . . Parts Fried . | . . Impact Corruptions . | . . Robots Melted . | . . Combat Hostiles . | . . Parts Melted . | . . Heat Transferred 358 | . 358 Parts Sabotaged . | . . Parts Stolen . | . . Parts Stripped . | . . Power Chain Reactions . | . . Missiles Intercepted . | . . Alert | -11 -10 ------- Run | Scr Mat Peak Influence 100 | . 100 Average Influence 24 | . 30 Maximum Alert Level . | . . Low Security (%) 100 | 100 100 Level 1 . | . . Level 2 . | . . Level 3 . | . . Level 4 . | . . Level 5 . | . . High Security . | . . Max Security . | . . Squads Dispatched 2 | . 2 Investigation . | . . Extermination . | . . Reinforcement 2 | . 2 Assault . | . . Garrison . | . . Intercept . | . . Construction Impeded . | . . Haulers Reinforced . | . . Stealth | -11 -10 --------- Run | Scr Mat Distress Signals 3 | . 3 Communications Jammed . | . . Distress Signals . | . . Times Spotted 15 | . 15 Peak Tracking Total 10 | . 10 Tactical Retreats 3 | . 3 Traps | -11 -10 ------- Run | Scr Mat Traps Triggered . | . . Indirectly . | . . Trap Hack Attempts . | . . Triggered . | . . Disarmed . | . . Reprogrammed . | . . Reused . | . . Traps Extracted . | . . Installed . | . . Triggered . | . . Machines | -11 -10 ---------- Run | Scr Mat Machines Disabled . | . . Max in Single Turn . | . . Machines Sabotaged . | . . Garrisons Compromised . | . . Overloaded Fab Kills . | . . Fab Network Shutdowns . | . . Hacking | -11 -10 --------- Run | Scr Mat Machines Accessed . | . . Terminals . | . . Fabricators . | . . Repair Stations . | . . Recycling Units . | . . Scanalyzers . | . . Garrison Access . | . . Total Hacks . | . . Successful . | . . Failed . | . . Catastrophic . | . . Database Lockouts . | . . Manual . | . . Terminals . | . . Fabricators . | . . Repair Stations . | . . Recycling Units . | . . Scanalyzers . | . . Garrison Access . | . . Terminal Hacks . | . . Fabricator Hacks . | . . Repair Station Hacks . | . . Recycling Unit Hacks . | . . Scanalyzer . | . . Garrison Access Hacks . | . . Unauthorized Hacks . | . . Terminals . | . . Fabricators . | . . Repair Stations . | . . Recycling Units . | . . Scanalyzers . | . . Garrison Access . | . . Data Cores Recovered . | . . Used . | . . Hacking Detections . | . . Full Trace Events . | . . Feedback Events . | . . Feedback Blocked . | . . Robot Schematics Acquired . | . . Robots Built . | . . Matter . | . . Time . | . . Total Robot Build Rating . | . . Part Schematics Acquired . | . . Parts Built . | . . Matter . | . . Time . | . . Total Part Build Rating . | . . Parts Repaired . | . . Time . | . . Parts Recycled . | . . Recycled Matter . | . . Retrieved Matter . | . . Retrieved Components . | . . Parts Scanalyzed . | . . Part Schematics Acquired . | . . Parts Damaged . | . . Bothacking | -11 -10 ------------ Run | Scr Mat Used RIF Installer . | . . Robots Hacked . | . . Non-combat . | . . Combat . | . . Robot Hacks Applied . | . . Relay Couplers Released . | . . Robots Rewired . | . . Allies Hacked . | . . Hacks Repelled . | . . Allies | -11 -10 -------- Run | Scr Mat Total Allies . | . . Largest Group . | . . Highest-Rated Group . | . . Highest-Rated Ally . | . . Total Orders . | . . Ally Attacks . | . . Total Damage . | . . Kills . | . . Allies Corrupted . | . . Allies Melted . | . . Intel | -11 -10 ------- Run | Scr Mat Robot Analysis Total . | . . Derelict Logs Recovered . | . . Drone Launches . | . . Drone Recoveries . | . . Exploration | -11 -10 ------------- Run | Scr Mat Turns Passed 222 | 40 182 Spaces Moved 126 | 34 92 Core 1 | 1 . Treads . | . . Legs . | . . Wheels 125 | 33 92 Hover . | . . Flight . | . . Fastest Speed 50 | 50 90 Average Speed 101 | 89 106 Slowest Speed 140 | 100 140 Overloaded Moves . | . . Propulsion Burnouts . | . . Robots Hopped . | . . Cave-ins Triggered . | . . Exploration Rate (%) 17 | 3 31 Regions Visited 1 Branch Regions . Pre-discovered Areas . | . . Known Exits Taken . | . . Unknown Exits Taken 1 | 1 . Scrap Searched . | . . Spaces Dug . | . . Terrain Destroyed . | . . Melee . | . . Projectile . | . . AOE . | . . Actions | -11 -10 --------- Run | Scr Mat Total 181 | 40 141 Wait 9 | . 9 Move 125 | 33 92 Hop . | . . Pick Up 8 | 1 7 Fast Attach 10 | 6 4 Attach 1 | . 1 Detach . | . . Swap . | . . Drop 1 | . 1 Fire 22 | . 22 Melee . | . . Ram 5 | . 5 Kick . | . . Crush . | . . Escape Stasis . | . . Rewire . | . . Trap . | . . Miscellaneous . | . . Route ------- -11/Scrapyard -10/Materials History --------- Turn | Location | Event 13 | -11/Scrapyard | Discovered new exit (range 16) 41 | -11/Scrapyard | Entered Materials 200 | -10/Materials | Lost 4 parts (1p1n2w) 217 | -10/Materials | Core integrity fell below 50% 222 | -10/Materials | Core integrity fell below 20% 223 | -10/Materials | Destroyed by G-47 Trooper with Particle Gun Last Messages --------------- 00182_ ALERT: Hostiles spotted, dispatching reinforcements to Terminal M005. 00182_ G-34 Mercenary destroyed. 00183_ Acquired 41 matter. 00186_ G-34 Mercenary destroyed. 00187_ Acquired 41 matter. 00190_ Electrolysis Chamber disabled. 00195_ R-06 Scavenger collects Sml. Laser. 00196_ R-06 Scavenger collects Aluminum Leg. 00198_ R-06 Scavenger collects Imp. Heat Sink. 00200_ G-47 Trooper destroyed. 00200_ R-06 Scavenger collects Imp. Heat Sink. 00206_ Power failure, Lgt. Ion Engine shutdown. 00208_ Particle Gun destroyed. 00210_ Acquired Sml. Laser. 00213_ Slammed into G-34 Mercenary. 00213_ Com. Wheel destroyed. 00213_ System corrupted by crushing effect (+2). 00215_ Sml. Laser destroyed. 00215_ Lgt. Ion Engine destroyed. Map ----- +----------------------------------------------------+ | ?????????????????????? ???????? | | ?????????????????????# #???????? | | ????????????????????? #???????? | | ????????????????????? +???????? | | ????????????????????? #???????? | | ????????????????????? #???????? | | ????????????????????? #???????? | | #####???????????????? #???????? | | ????????????????# #???????? | | ""???????????????# #???#???? | | """?????????????## ##? ????? | | ""?????????###### # ????? | | = ??######## # ?????? | | "???# ## T /??????? | | "???# ! ## #??????? | | ? ????# ## ## #??????? | | ? ????# """ ## ## ###??????? | | ##+##???# T" ## ## #????????? | | # ##### """ ## ## ########## | | # + ## ## # # | | ########+## # # "# | | # #????# # # T# | | # #????# T # # "# | | # #????# # # # | | #????# ## # # """ # | | # ###### ######## #@ """ # | | # + # =#gg "" # | | # #??????# =+%g # | | # #??????# *#########? | | # ##########??????# #????????? | | # #????#??????????# #????????? | | # #?? #??????????# #????????? | | # # "#??????????# +????????? | | + ????????????# #????????? | | #???????????????# #????????? | | #??????????????? #????????? | | #+#+###????????????? #????????? | | #????????????? #????????? | | #????????????!! #????????? | | #????????????!! #????????? | | #????????????!= ?????????? | | #???????????? ?????????? | | #?????????????? ?????????? | | #######??????????????????????????? | | ?????????????????????????????????? | | ?????????????????????????????????? | | ?????????????????????????????????? | | ?????????????????????????????????? | | ?????????????????????????????????? | | ?????????????????????????????????? | +----------------------------------------------------+ Best States ------------- Heat Dissipation 25 Energy Generation 10 Energy Capacity 250 Matter Stores 283 Matter Capacity 300 Sight Range 16 Terrain Scan Density 10 Evasion (%) 42 Item Schematics ----------------- None Robot Schematics ------------------ None Fabricated ------------ Nothing Alien Tech Used ----------------- None Achievements -------------- None Challenges ------------ None Game ------ Seed ExperimentalBeamCore Manual? 0 Play Time 00:03:21 Cumulative 27.4 hours Start 2020.08.18 @ 08:29:55 End 2020.08.18 @ 08:31:43 Sessions 1 Manual Loads 0 Difficulty Rogue Special Mode None Game No. 41 Rogue 41 Adventurer 0 Explorer 0 Win Type - Total 1 Types 1/0/0/0/0/0/0 Lore% 32 Gallery% 40 Achievement% 36 Wizard Run 0 Options --------- ASCII 0 Keyboard 0 Movement Numpad Keybinds 0 Fullscreen 1 Font 18/Smallcaps Map View 76x50 Tactical HUD 1 Map Filters NONE Filters NONE Steam 1 RUN: a6adaf16-319b-4ea9-a8ba-30c582f5b8ee